bitfinex/quotes_BTCUSD_20241107
["timestamp","ask_amount","ask_price","bid_price","bid_amount"]
[1731004213124,0.0831,76341.0,76334.0,0.1]
[1731004214074,0.0831,76341.0,76335.0,0.00261972]
[1731004214325,0.0831,76341.0,76330.0,0.101834]
[1731004215099,0.0831,76341.0,76331.0,0.02619]
[1731004215352,0.0831,76341.0,76333.0,0.001]
[1731004215886,0.0831,76341.0,76331.0,0.02619]
[1731004216080,0.0831,76341.0,76332.0,0.02619]
[1731004216325,0.0881,76341.0,76340.0,0.1]
[1731004217073,0.0765,76337.0,76333.0,0.02619]
[1731004217318,0.0765,76337.0,76335.0,0.1]
[1731004217569,0.0815,76337.0,76335.0,0.1]
[1731004217791,0.049,76336.0,76335.0,0.1]
[1731004218495,0.049,76336.0,76331.0,0.001834]
[1731004218710,0.049,76336.0,76335.0,0.1]
[1731004219147,0.049,76336.0,76335.0,0.101]
[1731004219368,0.049,76336.0,76335.0,0.1]
[1731004219582,0.049,76336.0,76331.0,0.000834]
[1731004219824,0.0846,76335.0,76334.0,0.1]
[1731004220056,0.0846,76332.0,76331.0,0.000834]
[1731004220279,0.21684102,76332.0,76331.0,0.000834]
[1731004221520,0.26584102,76332.0,76331.0,0.000834]
[1731004221934,0.26584102,76332.0,76331.0,0.001834]
[1731004222141,0.26584102,76332.0,76331.0,0.000834]
[1731004222559,0.26584102,76332.0,76331.0,0.001834]
[1731004222765,0.26584102,76332.0,76331.0,0.000834]
[1731004223190,0.26584102,76332.0,76331.0,0.001834]
[1731004224293,0.26584102,76332.0,76331.0,0.000834]
[1731004224730,0.26584102,76332.0,76331.0,0.001834]
[1731004225366,0.26438902,76332.0,76331.0,0.000834]
[1731004225775,0.26393739,76332.0,76331.0,0.000834]
[1731004225991,0.26393739,76332.0,76331.0,0.001834]
[1731004227407,0.26393739,76332.0,76331.0,0.000834]
[1731004227643,0.26393739,76332.0,76331.0,0.001834]
[1731004228054,0.27616697,76332.0,76331.0,0.001834]
[1731004228660,0.44999893,76332.0,76331.0,0.001834]
[1731004232382,0.50149882,76332.0,76331.0,0.001834]
[1731004232584,0.32766686,76332.0,76331.0,0.001834]
[1731004233212,0.28116697,76332.0,76331.0,0.001834]
[1731004233426,0.28116697,76332.0,76331.0,0.000834]
[1731004233847,0.28116697,76332.0,76331.0,0.001834]
[1731004234062,0.28116697,76332.0,76331.0,0.000834]
[1731004234268,0.12986697,76332.0,76331.0,0.000834]
[1731004234471,0.12986697,76332.0,76331.0,0.001834]
[1731004234675,0.12986531,76332.0,76331.0,0.001834]
[1731004235097,0.12619865,76332.0,76331.0,0.001834]
[1731004237287,0.25248007,76332.0,76331.0,0.001834]
[1731004238639,0.24269699,76332.0,76331.0,0.001834]
[1731004238857,0.252478,76332.0,76331.0,0.001834]
[1731004240406,0.42797796,76332.0,76331.0,0.001834]
[1731004241674,1.12327796,76332.0,76331.0,0.000834]
[1731004241883,1.16997033,76332.0,76331.0,0.000834]
[1731004242119,1.16997033,76332.0,76331.0,0.001834]
[1731004242324,1.00124647,76332.0,76331.0,0.001834]
[1731004242606,0.04,76331.0,76330.0,0.060834]
[1731004242826,0.04,76317.0,76312.0,0.19675615]
[1731004243003,0.18446056,76317.0,76312.0,0.19675615]
[1731004243686,0.24023619,76317.0,76312.0,0.19675615]
[1731004243895,0.31993619,76317.0,76301.0,0.1]
[1731004244525,0.35583282,76317.0,76301.0,0.1]
[1731004244727,0.31993619,76317.0,76301.0,0.1]
[1731004245125,0.31993619,76317.0,76316.0,0.001834]
[1731004245538,0.19423619,76317.0,76316.0,0.001834]
[1731004245670,0.02199517,76317.0,76316.0,0.101834]
[1731004245870,0.006668,76332.0,76317.0,0.1]
[1731004246080,0.13224102,76331.0,76323.0,0.1]
[1731004246469,0.001668,76332.0,76330.0,0.37058811]
[1731004246559,0.001668,76332.0,76331.0,0.10261978]
[1731004246760,0.001668,76332.0,76331.0,0.2660508]
[1731004246972,0.19675615,76364.0,76331.0,0.2660508]
[1731004246973,0.19675615,76364.0,76337.0,0.005]
[1731004247210,0.19675615,76364.0,76342.0,0.03119]
[1731004247411,0.19675615,76364.0,76353.0,0.27383196]
[1731004247666,11.45480438,76365.0,76353.0,0.42602196]
[1731004247872,11.45480438,76365.0,76353.0,0.25219]
[1731004248082,11.45480438,76365.0,76353.0,0.42602196]
[1731004248525,11.45480438,76365.0,76353.0,0.38052196]
[1731004248749,11.45480438,76365.0,76353.0,0.20769]
[1731004249181,11.45480438,76365.0,76353.0,0.20669]
[1731004249388,11.45480438,76365.0,76349.0,0.02737856]
[1731004249589,11.45480438,76365.0,76350.0,0.19675615]
[1731004249793,11.45480438,76365.0,76351.0,0.1]
[1731004250495,11.45480438,76365.0,76353.0,0.001]
[1731004250698,11.45480438,76365.0,76351.0,0.1]
[1731004251128,11.45480438,76365.0,76353.0,0.27383196]
[1731004251320,11.45480438,76365.0,76353.0,0.27883196]
[1731004252400,11.45480438,76365.0,76353.0,0.41369208]
[1731004252611,0.011668,76354.0,76353.0,0.41607298]
[1731004253046,0.011668,76354.0,76353.0,0.49107298]
[1731004253668,11.45480438,76365.0,76355.0,0.005]
[1731004253877,11.45480438,76365.0,76355.0,0.23724102]
[1731004254709,11.45480438,76365.0,76355.0,0.105]
[1731004255086,11.45480438,76365.0,76355.0,0.005]
[1731004255308,11.45480438,76365.0,76355.0,0.006]
[1731004255690,11.45480438,76365.0,76355.0,0.005]
[1731004256289,11.45480438,76365.0,76355.0,0.105]
[1731004256467,11.45480438,76365.0,76353.0,0.075]
[1731004256669,11.45480438,76365.0,76351.0,0.02700808]
[1731004256867,11.45480438,76365.0,76353.0,0.19675615]
[1731004257256,11.45480438,76365.0,76355.0,0.001]
[1731004257714,11.45480438,76365.0,76351.0,0.17383196]
[1731004257976,11.45480438,76365.0,76344.0,0.03304454]
[1731004258195,11.45480438,76365.0,76353.0,0.001]
[1731004258385,11.45480438,76365.0,76350.0,0.1]
[1731004258898,11.45480438,76365.0,76351.0,0.001]
[1731004260182,0.13224102,76355.0,76344.0,0.02772317]
[1731004260431,0.13224102,76355.0,76350.0,0.001]
[1731004260608,0.13224102,76355.0,76349.0,0.1]
[1731004261033,11.45480438,76365.0,76351.0,0.001]
[1731004261472,11.45480438,76365.0,76343.0,0.1272379]
[1731004261473,0.13224102,76355.0,76343.0,0.1272379]
[1731004261676,0.13224102,76355.0,76350.0,0.001]
[1731004261879,0.13224102,76355.0,76343.0,0.1272379]
[1731004261990,0.13224102,76355.0,76343.0,0.0272379]
[1731004262191,0.13224102,76355.0,76349.0,0.1]
[1731004263271,0.13224102,76355.0,76340.0,0.22485492]
[1731004263447,0.13224102,76355.0,76351.0,0.001]
[1731004263448,0.17383196,76352.0,76351.0,0.001]
[1731004263659,0.30607298,76352.0,76340.0,0.19675615]
[1731004263841,0.13224102,76351.0,76340.0,0.19675615]
[1731004264038,0.13224102,76351.0,76349.0,0.001]
[1731004264238,0.13224102,76351.0,76340.0,0.19675615]
[1731004264650,0.13224102,76351.0,76341.0,0.1]
[1731004265664,0.13224102,76351.0,76349.0,0.001]
[1731004266285,0.13224102,76351.0,76350.0,0.19675615]
[1731004266484,0.001668,76355.0,76351.0,0.1]
[1731004266778,0.13390902,76355.0,76351.0,0.1]
[1731004267635,0.13390902,76355.0,76345.0,0.02701631]
[1731004267847,0.13390902,76355.0,76349.0,0.1]
[1731004268051,0.13224102,76354.0,76349.0,0.1]
[1731004268262,0.13224102,76354.0,76351.0,0.001]
[1731004269074,0.13224102,76354.0,76341.0,0.1]
[1731004269376,0.13224102,76354.0,76349.0,0.1]
[1731004269579,0.13224102,76354.0,76341.0,0.1]
[1731004270326,0.001668,76355.0,76349.0,0.1]
[1731004270936,0.001668,76355.0,76350.0,0.02616]
[1731004272191,0.001668,76355.0,76350.0,0.001]
[1731004273232,0.001668,76355.0,76352.0,0.1]
[1731004274256,0.001668,76355.0,76350.0,0.001]
[1731004274580,0.001668,76355.0,76351.0,0.01939762]
[1731004274877,0.001668,76355.0,76354.0,0.1]
[1731004275299,0.001668,76355.0,76354.0,0.11944026]
[1731004275666,0.001668,76355.0,76354.0,0.01944026]
[1731004276772,0.001668,76355.0,76350.0,0.000834]
[1731004277034,0.001668,76355.0,76354.0,0.001]
[1731004277348,0.001668,76355.0,76350.0,0.000834]
[1731004277481,0.001668,76355.0,76354.0,0.001]
[1731004277873,0.13390902,76355.0,76354.0,0.001]
[1731004278074,0.26615179,76355.0,76354.0,0.001]
[1731004278274,0.30774098,76355.0,76354.0,0.001]
[1731004278591,0.13590902,76355.0,76354.0,0.001]
[1731004278944,0.13390902,76355.0,76354.0,0.001]
[1731004279147,0.15890902,76355.0,76354.0,0.001]
[1731004279355,0.33774098,76355.0,76354.0,0.001]
[1731004279559,0.33574098,76355.0,76354.0,0.001]
[1731004279775,0.33774098,76355.0,76354.0,0.001]
[1731004279979,0.46998375,76355.0,76354.0,0.001]
[1731004280187,0.005,76351.0,76350.0,0.000834]
[1731004280402,0.16224102,76351.0,76350.0,0.000834]
[1731004281077,0.16024102,76351.0,76350.0,0.000834]
[1731004281751,0.16024102,76351.0,76350.0,0.001834]
[1731004281974,0.16024102,76351.0,76350.0,0.000834]
[1731004282900,0.15524102,76351.0,76350.0,0.000834]
[1731004283136,0.16024102,76351.0,76350.0,0.000834]
[1731004284057,0.16024102,76351.0,76350.0,0.001834]
[1731004284288,0.16024102,76351.0,76350.0,0.000834]
[1731004284806,0.16024102,76351.0,76350.0,0.001834]
[1731004287549,0.16224102,76351.0,76350.0,0.001834]
[1731004287779,0.17202362,76351.0,76350.0,0.001834]
[1731004290113,0.16224102,76351.0,76350.0,0.001834]
[1731004290333,0.17202424,76351.0,76350.0,0.001834]
[1731004290582,0.23037855,76351.0,76350.0,0.001834]
[1731004290792,0.22837855,76351.0,76350.0,0.001834]
[1731004291028,0.17002424,76351.0,76350.0,0.001834]
[1731004291700,0.3143987,76351.0,76350.0,0.001834]
[1731004291948,0.42574275,76351.0,76350.0,0.001834]
[1731004292233,0.005,76337.0,76322.0,0.10856]
[1731004292482,0.13224102,76336.0,76322.0,0.10856]
[1731004292705,0.13224102,76336.0,76324.0,0.22379684]
[1731004293397,0.13224102,76336.0,76325.0,0.1]
[1731004294056,0.13224102,76336.0,76332.0,0.001]
[1731004294518,0.13224102,76336.0,76325.0,0.1]
[1731004294717,0.13224102,76336.0,76330.0,0.001834]
[1731004295194,0.13224102,76336.0,76330.0,0.000834]
[1731004296186,0.005,76334.0,76330.0,0.000834]
[1731004296423,0.028,76331.0,76330.0,0.000834]
[1731004296654,0.16024102,76331.0,76330.0,0.000834]
[1731004297108,0.16024102,76331.0,76330.0,0.001834]
[1731004297405,0.16024102,76331.0,76330.0,0.000834]
[1731004297659,0.21144591,76331.0,76330.0,0.001834]
[1731004297899,0.21144591,76331.0,76330.0,0.000834]
[1731004298142,0.16024102,76331.0,76330.0,0.000834]
[1731004298379,0.17024102,76331.0,76330.0,0.001834]
[1731004298839,0.17224102,76331.0,76330.0,0.001834]
[1731004299280,0.31655417,76331.0,76330.0,0.001834]
[1731004299509,0.31655417,76331.0,76300.0,0.19675615]
[1731004299510,0.03,76317.0,76305.0,0.02705924]
[1731004299749,0.33607298,76317.0,76305.0,0.02705924]
[1731004299984,0.33407298,76317.0,76305.0,0.02705924]
[1731004300432,0.33407298,76317.0,76316.0,0.000834]
[1731004301069,0.33407298,76317.0,76316.0,0.001834]
[1731004301318,0.34607298,76317.0,76316.0,0.001834]
[1731004301531,0.34607298,76317.0,76316.0,0.000834]
[1731004301532,0.34407298,76317.0,76316.0,0.000834]
[1731004301743,0.39214691,76317.0,76316.0,0.000834]
[1731004302369,0.17224102,76317.0,76316.0,0.000834]
[1731004303256,0.17024102,76317.0,76316.0,0.000834]
[1731004303459,0.17024102,76317.0,76316.0,0.001834]
[1731004303936,0.17224102,76317.0,76316.0,0.001834]
[1731004304375,0.16024102,76317.0,76316.0,0.001834]
[1731004304818,0.13224102,76317.0,76316.0,0.001834]
[1731004305235,0.13724102,76317.0,76316.0,0.001834]
[1731004305446,0.13224102,76317.0,76316.0,0.001834]
[1731004305861,0.13724102,76317.0,76316.0,0.001834]
[1731004306937,0.24349512,76317.0,76316.0,0.001834]
[1731004307144,0.16024102,76317.0,76316.0,0.001834]
[1731004308209,0.46857298,76317.0,76316.0,0.001834]
[1731004308438,0.028,76301.0,76300.0,0.19675615]
[1731004308665,0.16024102,76301.0,76300.0,0.19675615]
[1731004309073,0.005,76300.0,76292.0,0.19675615]
[1731004309321,0.15524102,76299.0,76292.0,0.19175615]
[1731004309552,0.15524102,76299.0,76279.0,0.049834]
[1731004309553,0.005,76295.0,76282.0,0.27595615]
[1731004309775,0.005,76295.0,76286.0,0.02734489]
[1731004309776,0.13224102,76294.0,76286.0,0.02734489]
[1731004310003,0.028,76291.0,76279.0,0.000834]
[1731004310268,0.023,76288.0,76283.0,0.19675615]
[1731004310483,0.023,76286.0,76284.0,0.02822554]
[1731004310695,0.13224102,76285.0,76284.0,0.000834]
[1731004310914,0.005,76289.0,76284.0,0.000834]
[1731004311141,0.005,76299.0,76284.0,0.077034]
[1731004311378,0.19675615,76294.0,76288.0,0.17383196]
[1731004311592,0.13224102,76293.0,76284.0,0.077034]
[1731004312927,0.023,76292.0,76284.0,0.077034]
[1731004313134,0.13224102,76291.0,76284.0,0.077034]
[1731004313571,0.13224102,76291.0,76284.0,0.078034]
[1731004313797,0.13224102,76291.0,76284.0,0.077034]
[1731004314183,0.13224102,76291.0,76284.0,0.078034]
[1731004314389,0.13224102,76291.0,76284.0,0.077034]
[1731004314597,0.13224102,76291.0,76284.0,0.078034]
[1731004315030,0.13224102,76291.0,76284.0,0.001834]
[1731004315449,0.023,76290.0,76284.0,0.001834]
[1731004315679,0.023,76285.0,76284.0,0.001834]
[1731004315904,0.15524102,76285.0,76284.0,0.001834]
[1731004316108,0.15524102,76285.0,76278.0,0.001482]
[1731004316354,0.023,76283.0,76278.0,0.001482]
[1731004316592,0.023,76281.0,76278.0,0.02901892]
[1731004316804,0.023,76281.0,76278.0,0.001482]
[1731004316805,0.13224102,76280.0,76278.0,0.001482]
[1731004317637,0.13224102,76280.0,76278.0,0.002482]
[1731004318090,0.13224102,76280.0,76278.0,0.001482]
[1731004318306,0.13224102,76280.0,76278.0,0.002482]
[1731004318977,0.10097651,76280.0,76278.0,0.002482]
[1731004321342,0.10069389,76280.0,76278.0,0.002482]
[1731004322230,0.023,76289.0,76278.0,0.002482]
[1731004322476,0.023,76287.0,76278.0,0.002482]
[1731004322691,0.005,76283.0,76278.0,0.002482]
[1731004322922,0.13224102,76282.0,76278.0,0.002482]
[1731004323142,0.13224102,76282.0,76278.0,0.001482]
[1731004323366,0.13224102,76282.0,76278.0,0.002482]
[1731004323789,0.13224102,76282.0,76278.0,0.001482]
[1731004323998,0.13224102,76282.0,76278.0,0.002482]
[1731004324204,0.13224102,76282.0,76278.0,0.001482]
[1731004324821,0.13224102,76282.0,76278.0,0.002482]
[1731004325688,0.19675615,76281.0,76278.0,0.002482]
[1731004325904,0.13224102,76280.0,76278.0,0.002482]
[1731004326588,0.13224102,76280.0,76278.0,0.001482]
[1731004326842,0.13224102,76280.0,76278.0,0.002482]
[1731004327067,0.005,76289.0,76279.0,0.37058811]
[1731004327285,0.13224102,76288.0,76281.0,0.0817]
[1731004328245,0.19675615,76294.0,76281.0,0.0817]
[1731004328461,0.13224102,76293.0,76281.0,0.0817]
[1731004328706,0.13224102,76294.0,76282.0,0.1]
[1731004328996,0.24917815,76303.0,76282.0,0.1]
[1731004328997,0.19675615,76303.0,76287.0,0.1]
[1731004329208,0.19675615,76302.0,76296.0,0.1]
[1731004329471,0.19675615,76302.0,76297.0,0.0828]
[1731004329949,0.01,76317.0,76297.0,0.0828]
[1731004329950,0.19675615,76310.0,76303.0,0.0828]
[1731004330630,0.005,76318.0,76303.0,0.0828]
[1731004330843,0.13224102,76317.0,76305.0,0.19675615]
[1731004331074,0.19675615,76320.0,76312.0,0.1]
[1731004332058,0.005,76325.0,76312.0,0.1]
[1731004332273,0.13224102,76324.0,76308.0,0.1]
[1731004333135,0.13224102,76324.0,76312.0,0.001]
[1731004333378,0.13224102,76324.0,76308.0,0.1]
[1731004333813,0.13224102,76324.0,76308.0,0.101]
[1731004333814,0.19675615,76320.0,76308.0,0.101]
[1731004334015,0.13224102,76319.0,76308.0,0.02750868]
[1731004334461,0.13224102,76319.0,76306.0,0.1]
[1731004334462,0.005,76328.0,76313.0,0.19675615]
[1731004334707,0.32899717,76327.0,76314.0,0.27383196]
[1731004334917,0.13224102,76327.0,76315.0,0.19675615]
[1731004335125,0.13224102,76327.0,76316.0,0.0752]
[1731004335557,0.13224102,76327.0,76316.0,0.1752]
[1731004335778,0.19675615,76338.0,76316.0,0.1752]
[1731004336200,0.00167,76327.0,76316.0,0.17654196]
[1731004336424,0.00167,76327.0,76317.0,0.00134196]
[1731004336638,0.00167,76327.0,76316.0,0.1762]
[1731004337087,0.00167,76327.0,76316.0,0.1752]
[1731004337269,0.00167,76327.0,76316.0,0.1762]
[1731004337514,0.00167,76327.0,76320.0,0.17383196]
[1731004337724,0.00167,76327.0,76321.0,0.1]
[1731004338357,0.19509415,76338.0,76321.0,0.1]
[1731004338631,0.13224102,76337.0,76321.0,0.1]
[1731004339489,0.13224102,76337.0,76324.0,0.1]
[1731004340865,0.13224102,76337.0,76324.0,0.101]
[1731004341095,0.002,76336.0,76324.0,0.001]
[1731004341334,0.13224102,76335.0,76324.0,0.001]
[1731004341561,0.13224102,76335.0,76325.0,0.19675615]
[1731004342729,0.13224102,76335.0,76324.0,0.001]
[1731004342969,0.13224102,76335.0,76316.0,0.1752]
[1731004343429,0.13224102,76335.0,76324.0,0.001]
[1731004343653,0.13224102,76335.0,76316.0,0.1752]
[1731004344079,0.13424102,76335.0,76324.0,0.001]
[1731004344282,0.13224102,76335.0,76324.0,0.001]
[1731004344733,0.13224102,76335.0,76316.0,0.1752]
[1731004344948,0.13224102,76335.0,76323.0,0.19675615]
[1731004345396,0.13224102,76335.0,76325.0,0.1]
[1731004346554,0.005239,76341.0,76325.0,0.1]
[1731004346815,0.13224102,76340.0,76325.0,0.1]
[1731004347062,0.04064936,76350.0,76324.0,0.19775615]
[1731004347063,0.052391,76345.0,76334.0,0.19675615]
[1731004347307,0.19675615,76347.0,76344.0,0.17383196]
[1731004347563,0.19675615,76347.0,76345.0,0.1]
[1731004347796,0.001668,76350.0,76345.0,0.1]
[1731004350415,0.001668,76350.0,76345.0,0.1279442]
[1731004350636,0.001668,76350.0,76345.0,0.1269442]
[1731004352895,0.001668,76350.0,76345.0,0.0269442]
[1731004353144,0.001668,76350.0,76343.0,0.005]
[1731004353624,0.001668,76350.0,76345.0,0.001]
[1731004353872,0.001668,76350.0,76343.0,0.02688685]
[1731004354330,0.001668,76350.0,76345.0,0.001]
[1731004354553,0.001668,76350.0,76341.0,0.0321035]
[1731004354782,0.001668,76350.0,76345.0,0.001]
[1731004355286,0.001668,76350.0,76346.0,0.005]
[1731004355507,0.001668,76350.0,76348.0,0.005]
[1731004357141,0.001668,76350.0,76348.0,0.006]
[1731004357381,0.001668,76350.0,76348.0,0.005]
[1731004357630,0.001668,76350.0,76349.0,0.48739717]
[1731004357856,0.001668,76350.0,76349.0,0.29064102]
[1731004358327,0.001668,76350.0,76349.0,0.45947298]
[1731004358522,0.001668,76350.0,76349.0,0.32723196]
[1731004358793,0.001668,76350.0,76349.0,0.35470895]
[1731004359046,0.001668,76350.0,76349.0,0.08087699]
[1731004359267,0.001668,76355.0,76354.0,0.005]
[1731004359503,5.98563931,76356.0,76355.0,0.11]
[1731004359722,5.86902862,76356.0,76355.0,0.71630494]
[1731004359932,5.86902862,76356.0,76355.0,0.74246494]
[1731004360360,5.86902862,76356.0,76355.0,0.56863298]
[1731004360575,5.81879862,76356.0,76355.0,0.54247298]
[1731004361208,5.81879862,76356.0,76355.0,0.54347298]
[1731004361400,5.81879862,76356.0,76355.0,0.63326045]
[1731004362294,5.81879862,76356.0,76355.0,0.64326045]
[1731004363563,5.81879862,76356.0,76355.0,0.63826045]
[1731004363805,5.81879862,76356.0,76355.0,0.64326045]
[1731004364034,5.1301578,76356.0,76355.0,0.67598829]
[1731004364707,5.1301578,76356.0,76355.0,0.67798829]
[1731004365593,5.1301578,76356.0,76355.0,0.66826045]
[1731004365809,5.0840678,76356.0,76355.0,0.66826045]
[1731004366022,4.55182358,76356.0,76355.0,0.68074129]
[1731004366244,4.40472358,76356.0,76355.0,0.70690129]
[1731004366463,3.80148391,76356.0,76355.0,0.70690129]
[1731004366680,3.75142391,76356.0,76355.0,0.70690129]
[1731004367130,2.84938137,76356.0,76355.0,0.57950129]
[1731004367829,2.64210578,76356.0,76355.0,0.57950129]
[1731004368044,1.87776033,76356.0,76355.0,0.57950129]
[1731004368258,1.80358216,76356.0,76355.0,1.12437029]
[1731004368465,1.73078355,76356.0,76355.0,1.12437029]
[1731004368911,1.44400868,76356.0,76355.0,1.12437029]
[1731004369120,1.34862015,76356.0,76355.0,1.14760609]
[1731004369349,1.34862015,76356.0,76355.0,0.55498866]
[1731004369350,1.01955163,76356.0,76355.0,0.55498866]
[1731004369569,1.01955163,76356.0,76355.0,0.74808703]
[1731004369570,0.89168821,76356.0,76355.0,0.74808703]
[1731004370000,0.38025313,76356.0,76355.0,0.74808703]
[1731004370646,0.1733946,76356.0,76355.0,0.74808703]
[1731004370854,0.15901344,76356.0,76355.0,0.74808703]
[1731004371087,11.31858945,76365.0,76364.0,0.04816]
[1731004371307,10.78455817,76365.0,76364.0,0.56702045]
[1731004371521,10.69717578,76365.0,76364.0,0.84111964]
[1731004371735,10.46400704,76365.0,76364.0,0.86435544]
[1731004372374,10.39606443,76365.0,76364.0,0.86435544]
[1731004372844,10.33457991,76365.0,76364.0,3.89685144]
[1731004373055,10.28683991,76365.0,76364.0,3.68125944]
[1731004373261,10.28683991,76365.0,76364.0,3.70873255]
[1731004373488,9.98543836,76365.0,76364.0,3.70873255]
[1731004373715,1.92988947,76365.0,76364.0,4.20673255]
[1731004373962,1.84872162,76365.0,76364.0,4.18125944]
[1731004374240,1.84872162,76365.0,76364.0,3.68125944]
[1731004374474,1.83509694,76365.0,76364.0,3.68125944]
[1731004374703,1.73545325,76365.0,76364.0,3.68125944]
[1731004376023,1.73545325,76365.0,76364.0,4.07410944]
[1731004376730,1.73545325,76365.0,76364.0,4.10195985]
[1731004378703,1.73545325,76365.0,76364.0,2.59926185]
[1731004378914,1.73545325,76365.0,76364.0,2.29695285]
[1731004379585,1.73545325,76365.0,76364.0,2.01622385]
[1731004379997,1.73545325,76365.0,76364.0,1.28505585]
[1731004380205,1.73545325,76365.0,76364.0,1.43019585]
[1731004380698,0.0004,76379.0,76374.0,1.21055766]
[1731004380699,5.41844609,76375.0,76374.0,1.21055766]
[1731004380914,5.05441406,76375.0,76374.0,7.83205766]
[1731004381130,3.91549271,76375.0,76374.0,9.34159328]
[1731004381348,2.10122071,76375.0,76374.0,10.52659328]
[1731004381573,1.64532777,76375.0,76374.0,9.13349328]
[1731004381797,4.55104192,76384.0,76383.0,1.02386331]
[1731004382009,3.64009892,76384.0,76383.0,3.21464794]
[1731004382219,0.40433608,76384.0,76383.0,3.21464794]
[1731004382442,11.05480676,76393.0,76392.0,0.86386968]
[1731004382654,8.16581283,76393.0,76392.0,3.17550298]
[1731004382870,7.98432737,76393.0,76392.0,5.30422075]
[1731004383081,6.35005904,76393.0,76392.0,6.48895961]
[1731004383294,3.32345467,76393.0,76392.0,10.24449061]
[1731004383497,2.41817167,76393.0,76392.0,6.51592767]
[1731004383674,1.43255404,76393.0,76392.0,6.51592767]
[1731004383908,0.10303704,76393.0,76392.0,6.51592767]
[1731004384082,9.76122881,76403.0,76402.0,1.02405793]
[1731004384353,9.41471287,76403.0,76402.0,2.69830186]
[1731004384566,7.55349627,76403.0,76402.0,3.22866186]
[1731004384781,2.15562324,76403.0,76402.0,3.09096186]
[1731004384992,0.42634666,76403.0,76402.0,3.15378693]
[1731004385205,10.30958468,76412.0,76411.0,0.79616]
[1731004385406,10.29047813,76412.0,76411.0,5.30129279]
[1731004385619,9.34326138,76412.0,76411.0,5.69390279]
[1731004385831,8.71352838,76412.0,76411.0,6.5826939]
[1731004386037,7.71803109,76412.0,76411.0,6.5806939]
[1731004386216,7.71803109,76412.0,76411.0,6.5826939]
[1731004386457,7.02599464,76412.0,76411.0,7.6203939]
[1731004386892,5.65721395,76412.0,76411.0,7.6203939]
[1731004387307,3.03711448,76412.0,76411.0,7.6203939]
[1731004387524,1.19875249,76412.0,76411.0,7.6203939]
[1731004387699,0.05404302,76420.0,76419.0,0.79816]
[1731004387937,11.35054339,76421.0,76420.0,0.11414337]
[1731004388186,9.81939991,76421.0,76420.0,0.19588973]
[1731004388405,8.89363337,76421.0,76420.0,0.58845973]
[1731004388613,8.89363337,76421.0,76420.0,2.38109073]
[1731004388820,8.85453337,76421.0,76420.0,2.47239073]
[1731004389285,8.85298226,76421.0,76420.0,2.47549295]
[1731004389514,8.76365179,76421.0,76420.0,3.35523495]
[1731004389740,8.70935343,76421.0,76420.0,3.36123951]
[1731004389952,8.42191629,76421.0,76420.0,3.33507951]
[1731004390167,8.36486873,76421.0,76420.0,3.35567801]
[1731004390376,8.0749781,76421.0,76420.0,3.32967345]
[1731004390595,5.96681025,76421.0,76420.0,3.3313149]
[1731004390778,5.67681025,76421.0,76420.0,3.27785345]
[1731004390996,5.40267534,76421.0,76420.0,3.27785345]
[1731004391159,5.40267534,76421.0,76420.0,3.34291002]
[1731004391375,1.65887836,76421.0,76420.0,3.34291002]
[1731004391579,0.60133792,76421.0,76420.0,1.66535702]
[1731004391788,0.59906637,76421.0,76420.0,1.66535702]
[1731004391995,0.35572137,76421.0,76420.0,2.74845682]
[1731004392222,0.35311178,76421.0,76420.0,2.77200236]
[1731004392369,0.17248294,76421.0,76420.0,2.77200236]
[1731004392571,10.99937177,76431.0,76430.0,0.96034424]
[1731004392773,10.47789405,76431.0,76430.0,8.61316569]
[1731004392986,10.13397631,76431.0,76430.0,8.99251869]
[1731004393205,9.80455967,76431.0,76430.0,8.99238434]
[1731004393400,9.80455967,76431.0,76430.0,5.30462134]
[1731004393613,9.55347696,76431.0,76430.0,8.43451634]
[1731004393815,9.53402001,76431.0,76430.0,8.43451634]
[1731004394216,9.46683802,76431.0,76430.0,8.46334227]
[1731004394420,9.46683802,76431.0,76430.0,9.26334227]
[1731004394623,9.16815389,76431.0,76430.0,9.26334227]
[1731004394824,9.16815389,76431.0,76430.0,9.10197927]
[1731004395025,9.16515389,76431.0,76430.0,9.10197927]
[1731004395224,9.04382446,76431.0,76430.0,9.10197927]
[1731004395428,9.04382446,76431.0,76430.0,9.09997927]
[1731004395654,8.51953202,76431.0,76430.0,9.10197927]
[1731004395892,8.50592414,76431.0,76430.0,9.10197927]
[1731004396027,8.44089691,76431.0,76430.0,9.08315826]
[1731004396231,8.44089691,76431.0,76430.0,9.059632]
[1731004396589,8.08576421,76431.0,76430.0,9.10195115]
[1731004396994,8.08576421,76431.0,76430.0,9.23419217]
[1731004397221,8.08576421,76431.0,76430.0,9.21068153]
[1731004397682,8.04530914,76431.0,76430.0,9.20868153]
[1731004398128,8.02012764,76431.0,76430.0,9.20868153]
[1731004398368,8.01012764,76431.0,76430.0,9.20868153]
[1731004398577,8.01012764,76431.0,76430.0,9.11068153]
[1731004398578,8.00824931,76431.0,76430.0,9.11068153]
[1731004399009,7.99463994,76431.0,76430.0,9.11068153]
[1731004399229,7.99463994,76431.0,76430.0,9.10961499]
[1731004399522,7.99463994,76431.0,76430.0,8.95500399]
[1731004399738,7.99463994,76431.0,76430.0,8.64516799]
[1731004399739,7.99163994,76431.0,76430.0,8.64516799]
[1731004399956,7.93931994,76431.0,76430.0,8.64516799]
[1731004400170,7.91315994,76431.0,76430.0,8.67132799]
[1731004400390,7.91315994,76431.0,76430.0,7.92685799]
[1731004401077,7.90314654,76431.0,76430.0,7.92685799]
[1731004401530,9.99263323,76440.0,76439.0,0.86367775]
[1731004401769,6.79696081,76440.0,76439.0,3.98491866]
[1731004402048,6.15876538,76440.0,76439.0,4.70638866]
[1731004402271,2.66083661,76440.0,76439.0,9.9043204]
[1731004402514,1.84243667,76440.0,76439.0,6.68135466]
[1731004402749,0.15471144,76440.0,76439.0,6.68135466]
[1731004402971,0.03127472,76440.0,76439.0,10.93341966]
[1731004403202,0.00195484,76440.0,76439.0,11.00879866]
[1731004403515,0.78502692,76449.0,76439.0,11.00879866]
[1731004403516,10.68119974,76449.0,76448.0,1.10163249]
[1731004403767,10.68119974,76449.0,76448.0,3.49786001]
[1731004403988,10.68119974,76449.0,76448.0,3.89028001]
[1731004403989,10.62660974,76449.0,76448.0,3.89028001]